[Event "Early-Titled-Tuesday-Blitz-January-30-2024"]
[Site "Chess.com"]
[Date "2024.01.30"]
[Round "6"]
[White "bilosuvenosu06"]
[Black "brm72"]
[Result "0-1"]
[WhiteElo "2530"]
[BlackElo "2689"]
[TimeControl "180+1"]
[EndTime "9:08:14 PST"]
[Termination "brm72 won by resignation"]

1. d4 {[%clk 0:02:59.8]} 1... Nf6 {[%clk 0:02:59.5]} 2. Nf3 {[%clk 0:02:58.6]}
2... e6 {[%clk 0:02:58]} 3. Bf4 {[%clk 0:02:58.7]} 3... c5 {[%clk 0:02:58.1]} 4.
e3 {[%clk 0:02:58.9]} 4... b6 {[%clk 0:02:58.2]} 5. Nbd2 {[%clk 0:02:58.4]} 5...
Bb7 {[%clk 0:02:58.7]} 6. Bd3 {[%clk 0:02:58.8]} 6... Nc6 {[%clk 0:02:57.3]} 7.
c3 {[%clk 0:02:58.9]} 7... d5 {[%clk 0:02:57.2]} 8. Qe2 {[%clk 0:02:58.6]} 8...
Bd6 {[%clk 0:02:57.1]} 9. O-O {[%clk 0:02:57.7]} 9... O-O {[%clk 0:02:57.1]} 10.
Bxd6 {[%clk 0:02:43.7]} 10... Qxd6 {[%clk 0:02:58]} 11. e4 {[%clk 0:02:44]}
11... dxe4 {[%clk 0:02:44.9]} 12. Nxe4 {[%clk 0:02:43.9]} 12... Nxe4 {[%clk
0:02:45.2]} 13. Qxe4 {[%clk 0:02:44.8]} 13... g6 {[%clk 0:02:45.4]} 14. Qh4
{[%clk 0:02:34.6]} 14... Kg7 {[%clk 0:02:43.5]} 15. Rad1 {[%clk 0:02:31.7]}
15... cxd4 {[%clk 0:02:42]} 16. Be4 {[%clk 0:02:29.9]} 16... Qc7 {[%clk
0:02:18.7]} 17. Nxd4 {[%clk 0:02:07.5]} 17... Nxd4 {[%clk 0:02:15.5]} 18. Rxd4
{[%clk 0:02:07.6]} 18... Bxe4 {[%clk 0:02:01.1]} 19. Qxe4 {[%clk 0:02:07.5]}
19... Rad8 {[%clk 0:01:59]} 20. Rfd1 {[%clk 0:02:07.4]} 20... Rxd4 {[%clk
0:01:53.1]} 21. Qxd4+ {[%clk 0:02:07.7]} 21... e5 {[%clk 0:01:52.5]} 22. Qd7
{[%clk 0:02:07.3]} 22... Rc8 {[%clk 0:01:49.4]} 23. h3 {[%clk 0:02:02.2]} 23...
a6 {[%clk 0:01:32.3]} 24. Qxc7 {[%clk 0:02:01.2]} 24... Rxc7 {[%clk 0:01:31.7]}
25. Rd6 {[%clk 0:02:02.1]} 25... Rb7 {[%clk 0:01:28.9]} 26. Kf1 {[%clk
0:02:02.2]} 26... Kf8 {[%clk 0:01:29.1]} 27. Rd5 {[%clk 0:01:55.3]} 27... f6
{[%clk 0:01:27.9]} 28. Ke2 {[%clk 0:01:55.2]} 28... Ke7 {[%clk 0:01:28.1]} 29.
Ke3 {[%clk 0:01:55.2]} 29... Ke6 {[%clk 0:01:28.4]} 30. Rd8 {[%clk 0:01:55.5]}
30... f5 {[%clk 0:01:23.8]} 31. f4 {[%clk 0:01:55.1]} 31... e4 {[%clk 0:01:21]}
32. g4 {[%clk 0:01:55.2]} 32... Rd7 {[%clk 0:01:19.1]} 33. Re8+ {[%clk
0:01:49.6]} 33... Kf7 {[%clk 0:01:10.9]} 34. Rb8 {[%clk 0:01:40.6]} 34... b5
{[%clk 0:01:07.1]} 35. gxf5 {[%clk 0:01:37.9]} 35... gxf5 {[%clk 0:01:08]} 36.
Ke2 {[%clk 0:01:36.1]} 36... Rd3 {[%clk 0:01:01.4]} 37. Rb7+ {[%clk 0:01:35.8]}
37... Kg6 {[%clk 0:00:55.5]} 38. Rb6+ {[%clk 0:01:35.2]} 38... Kg7 {[%clk
0:00:49.1]} 39. Rb7+ {[%clk 0:01:35.4]} 39... Kg6 {[%clk 0:00:48.1]} 40. Rb6+
{[%clk 0:01:34.8]} 40... Kh5 {[%clk 0:00:47.8]} 41. Rf6 {[%clk 0:01:34.6]} 41...
Rd5 {[%clk 0:00:45.7]} 42. Rxa6 {[%clk 0:01:29.8]} 42... Kh4 {[%clk 0:00:43.2]}
43. Rh6+ {[%clk 0:01:29.5]} 43... Kg3 {[%clk 0:00:43.3]} 44. Rxh7 {[%clk
0:01:17.2]} 44... Kxf4 {[%clk 0:00:43.5]} 45. b3 {[%clk 0:01:13.6]} 45... Rd3
{[%clk 0:00:42.7]} 46. Rc7 {[%clk 0:01:00.4]} 46... Rxh3 {[%clk 0:00:41.8]} 47.
a4 {[%clk 0:01:00.4]} 47... Rh2+ {[%clk 0:00:41]} 48. Ke1 {[%clk 0:01:00.3]}
48... bxa4 {[%clk 0:00:40.1]} 49. bxa4 {[%clk 0:01:00.4]} 49... Ke3 {[%clk
0:00:39.8]} 50. Kf1 {[%clk 0:01:01]} 50... f4 {[%clk 0:00:39.6]} 51. a5 {[%clk
0:00:58.1]} 51... f3 {[%clk 0:00:39.8]} 52. Kg1 {[%clk 0:00:58.1]} 52... Ra2
{[%clk 0:00:39.8]} 53. Rf7 {[%clk 0:00:56.7]} 53... Rxa5 {[%clk 0:00:38.7]} 54.
c4 {[%clk 0:00:56.7]} 54... Rc5 {[%clk 0:00:37.8]} 55. Kh2 {[%clk 0:00:55.6]}
55... Rxc4 {[%clk 0:00:35.8]} 56. Kg3 {[%clk 0:00:56.5]} 56... Rc8 {[%clk
0:00:35]} 57. Rg7 {[%clk 0:00:56.5]} 57... Ke2 {[%clk 0:00:33]} 58. Kf4 {[%clk
0:00:56.3]} 58... f2 {[%clk 0:00:32.1]} 0-1

[Event "Early-Titled-Tuesday-Blitz-January-30-2024"]
[Site "Chess.com"]
[Date "2024.01.30"]
[Round "6"]
[White "garfield_pg"]
[Black "ChEsper99"]
[Result "1-0"]
[WhiteElo "2460"]
[BlackElo "2145"]
[TimeControl "180+1"]
[EndTime "9:08:17 PST"]
[Termination "garfield_pg won by resignation"]

1. d4 {[%clk 0:03:00.9]} 1... Nf6 {[%clk 0:02:57.1]} 2. c4 {[%clk 0:02:58.3]}
2... g6 {[%clk 0:02:56.9]} 3. Nc3 {[%clk 0:02:58.6]} 3... Bg7 {[%clk 0:02:56.4]}
4. e4 {[%clk 0:02:58.7]} 4... d6 {[%clk 0:02:56.6]} 5. Nge2 {[%clk 0:02:59.1]}
5... O-O {[%clk 0:02:49.7]} 6. Ng3 {[%clk 0:02:58.8]} 6... e5 {[%clk 0:02:41.1]}
7. d5 {[%clk 0:02:58.9]} 7... a5 {[%clk 0:02:41.4]} 8. Be2 {[%clk 0:02:54.8]}
8... Na6 {[%clk 0:02:39.8]} 9. h4 {[%clk 0:02:54.9]} 9... c6 {[%clk 0:02:29.2]}
10. h5 {[%clk 0:02:52.5]} 10... Rb8 {[%clk 0:02:05.6]} 11. h6 {[%clk 0:01:53.2]}
11... Bh8 {[%clk 0:02:05]} 12. Bg5 {[%clk 0:01:53.9]} 12... Qc7 {[%clk 0:01:44]}
13. Qd2 {[%clk 0:01:38.1]} 13... Ne8 {[%clk 0:01:25.6]} 14. Rd1 {[%clk
0:01:24.9]} 14... f6 {[%clk 0:01:19.6]} 15. Be3 {[%clk 0:01:24.6]} 15... Bd7
{[%clk 0:01:19.4]} 16. a3 {[%clk 0:01:01.5]} 16... f5 {[%clk 0:00:53]} 17. exf5
{[%clk 0:00:58]} 17... gxf5 {[%clk 0:00:53.9]} 18. Bg5 {[%clk 0:00:47.5]} 18...
Bf6 {[%clk 0:00:48.9]} 19. Bh5 {[%clk 0:00:36.5]} 19... b5 {[%clk 0:00:37.9]}
20. Bxf6 {[%clk 0:00:33.4]} 20... Rxf6 {[%clk 0:00:34.1]} 21. Qg5+ {[%clk
0:00:33.7]} 21... Kh8 {[%clk 0:00:34.3]} 22. Bxe8 {[%clk 0:00:33.5]} 22... Bxe8
{[%clk 0:00:30.7]} 23. Qxf6+ {[%clk 0:00:32.5]} 23... Kg8 {[%clk 0:00:31.3]} 24.
Nxf5 {[%clk 0:00:32.3]} 24... Rb7 {[%clk 0:00:23]} 25. dxc6 {[%clk 0:00:26]}
25... Bxc6 {[%clk 0:00:17.7]} 26. Rxd6 {[%clk 0:00:25.5]} 26... Be8 {[%clk
0:00:05.8]} 27. Nd5 {[%clk 0:00:23.3]} 27... Qf7 {[%clk 0:00:03.3]} 28. Nde7+
{[%clk 0:00:18.5]} 1-0

[Event "Early-Titled-Tuesday-Blitz-January-30-2024"]
[Site "Chess.com"]
[Date "2024.01.30"]
[Round "6"]
[White "tolia123"]
[Black "Kotofeyca"]
[Result "1-0"]
[WhiteElo "2163"]
[BlackElo "2374"]
[TimeControl "180+1"]
[EndTime "9:08:18 PST"]
[Termination "tolia123 won by resignation"]

1. d4 {[%clk 0:03:00.9]} 1... d5 {[%clk 0:03:00]} 2. Nc3 {[%clk 0:03:00.7]} 2...
Bf5 {[%clk 0:02:59.4]} 3. Bf4 {[%clk 0:03:00.3]} 3... e6 {[%clk 0:02:59.3]} 4.
e3 {[%clk 0:02:59.9]} 4... Nf6 {[%clk 0:02:58.8]} 5. f3 {[%clk 0:03:00.5]} 5...
Bd6 {[%clk 0:02:46.1]} 6. Nge2 {[%clk 0:02:57.6]} 6... h6 {[%clk 0:02:33]} 7. g4
{[%clk 0:02:57.6]} 7... Bh7 {[%clk 0:02:32]} 8. h4 {[%clk 0:02:57.7]} 8... c5
{[%clk 0:02:19.4]} 9. dxc5 {[%clk 0:02:29.5]} 9... Bxc5 {[%clk 0:02:13.4]} 10.
g5 {[%clk 0:02:16.8]} 10... Nh5 {[%clk 0:02:05.3]} 11. Qd2 {[%clk 0:02:06.9]}
11... Nxf4 {[%clk 0:01:47.4]} 12. Nxf4 {[%clk 0:02:07.8]} 12... Qb6 {[%clk
0:01:07.9]} 13. Na4 {[%clk 0:01:37.4]} 13... Bxe3 {[%clk 0:01:07.2]} 14. Qc3
{[%clk 0:01:37.5]} 14... Qd4 {[%clk 0:00:43.7]} 15. Bb5+ {[%clk 0:01:19.6]}
15... Nd7 {[%clk 0:00:29.1]} 16. Qxd4 {[%clk 0:00:34.9]} 16... Bxd4 {[%clk
0:00:28]} 17. Rd1 {[%clk 0:00:34.8]} 17... Be3 {[%clk 0:00:23.4]} 18. Nxd5
{[%clk 0:00:34.8]} 18... exd5 {[%clk 0:00:19.5]} 19. Rxd5 {[%clk 0:00:35.7]}
19... O-O-O {[%clk 0:00:17.9]} 20. Ke2 {[%clk 0:00:32.7]} 20... Bb6 {[%clk
0:00:16.7]} 21. Rhd1 {[%clk 0:00:30.4]} 21... Rhe8+ {[%clk 0:00:12.4]} 22. Kf1
{[%clk 0:00:28.1]} 22... Re7 {[%clk 0:00:12.6]} 23. c4 {[%clk 0:00:24]} 23... a6
{[%clk 0:00:10.3]} 24. Bxd7+ {[%clk 0:00:23.4]} 24... Rexd7 {[%clk 0:00:09.8]}
25. Nxb6+ {[%clk 0:00:23.7]} 25... Kc7 {[%clk 0:00:09.9]} 26. Rxd7+ {[%clk
0:00:23.8]} 26... Rxd7 {[%clk 0:00:09.2]} 27. Nxd7 {[%clk 0:00:24.7]} 27... Bc2
{[%clk 0:00:08.1]} 28. Rd2 {[%clk 0:00:24.4]} 28... Bf5 {[%clk 0:00:08]} 29. Ne5
{[%clk 0:00:24.5]} 29... f6 {[%clk 0:00:08.4]} 30. gxf6 {[%clk 0:00:24.8]} 30...
gxf6 {[%clk 0:00:09.3]} 31. Ng4 {[%clk 0:00:25.3]} 31... h5 {[%clk 0:00:09.1]}
32. Nxf6 {[%clk 0:00:25.5]} 32... Kc6 {[%clk 0:00:09.6]} 33. Nxh5 {[%clk
0:00:25.7]} 33... Kc5 {[%clk 0:00:10.5]} 34. b3 {[%clk 0:00:25.5]} 34... Kb4
{[%clk 0:00:09.8]} 35. Nf6 {[%clk 0:00:25.8]} 35... Kc3 {[%clk 0:00:10.3]} 36.
Rh2 {[%clk 0:00:24.6]} 1-0

[Event "Early-Titled-Tuesday-Blitz-January-30-2024"]
[Site "Chess.com"]
[Date "2024.01.30"]
[Round "6"]
[White "yuriydovzik"]
[Black "NovakRatko"]
[Result "0-1"]
[WhiteElo "2209"]
[BlackElo "2384"]
[TimeControl "180+1"]
[EndTime "9:08:20 PST"]
[Termination "NovakRatko won on time"]

1. a3 {[%clk 0:02:57.9]} 1... d5 {[%clk 0:02:59.3]} 2. d4 {[%clk 0:02:51.7]}
2... c5 {[%clk 0:02:58.3]} 3. dxc5 {[%clk 0:02:50.6]} 3... a5 {[%clk 0:02:58]}
4. c4 {[%clk 0:02:42.5]} 4... d4 {[%clk 0:02:57.4]} 5. Nf3 {[%clk 0:02:40]} 5...
Nc6 {[%clk 0:02:56.6]} 6. e3 {[%clk 0:02:38.8]} 6... e5 {[%clk 0:02:56.2]} 7.
exd4 {[%clk 0:02:33.5]} 7... exd4 {[%clk 0:02:57.1]} 8. Bd3 {[%clk 0:02:13]}
8... Bxc5 {[%clk 0:02:51.6]} 9. O-O {[%clk 0:02:11.7]} 9... Bg4 {[%clk
0:02:46.1]} 10. h3 {[%clk 0:02:05.1]} 10... Bh5 {[%clk 0:02:45.6]} 11. Nbd2
{[%clk 0:02:03.7]} 11... Nf6 {[%clk 0:02:23.6]} 12. Re1+ {[%clk 0:02:01.1]}
12... Be7 {[%clk 0:02:23]} 13. Nf1 {[%clk 0:01:55.7]} 13... O-O {[%clk
0:02:19.3]} 14. Ng3 {[%clk 0:01:54.7]} 14... Bg6 {[%clk 0:02:06.5]} 15. Nf5
{[%clk 0:01:51]} 15... Bd6 {[%clk 0:02:03.4]} 16. Bg5 {[%clk 0:01:44.4]} 16...
h6 {[%clk 0:01:49.5]} 17. Bh4 {[%clk 0:01:33.1]} 17... Bxf5 {[%clk 0:01:48]} 18.
Bxf5 {[%clk 0:01:32.2]} 18... g5 {[%clk 0:01:48.4]} 19. Bg3 {[%clk 0:01:27.1]}
19... Bxg3 {[%clk 0:01:47.6]} 20. fxg3 {[%clk 0:01:26.2]} 20... Qd6 {[%clk
0:01:47.3]} 21. g4 {[%clk 0:01:12.3]} 21... Rad8 {[%clk 0:01:46.2]} 22. Qd3
{[%clk 0:01:10.1]} 22... Rfe8 {[%clk 0:01:35.4]} 23. Kf2 {[%clk 0:01:00.2]}
23... Nd7 {[%clk 0:01:23.4]} 24. Bxd7 {[%clk 0:00:53.9]} 24... Qxd7 {[%clk
0:01:14.2]} 25. Rxe8+ {[%clk 0:00:46.1]} 25... Rxe8 {[%clk 0:01:13.8]} 26. Re1
{[%clk 0:00:45.6]} 26... Rxe1 {[%clk 0:01:11.1]} 27. Kxe1 {[%clk 0:00:40.4]}
27... Qd6 {[%clk 0:01:06.1]} 28. Kf2 {[%clk 0:00:33.6]} 28... Qf4 {[%clk
0:00:59.7]} 29. Qd2 {[%clk 0:00:29.8]} 29... Qe4 {[%clk 0:00:58.3]} 30. Qe2
{[%clk 0:00:26]} 30... Qb1 {[%clk 0:00:52.4]} 31. Qd2 {[%clk 0:00:14.7]} 31...
d3 {[%clk 0:00:44.1]} 32. Ke3 {[%clk 0:00:08.9]} 32... a4 {[%clk 0:00:27.1]} 33.
Ke4 {[%clk 0:00:01.4]} 33... Kg7 {[%clk 0:00:26]} 0-1

[Event "Early-Titled-Tuesday-Blitz-January-30-2024"]
[Site "Chess.com"]
[Date "2024.01.30"]
[Round "6"]
[White "jjlai1111"]
[Black "Timerkhanov"]
[Result "0-1"]
[WhiteElo "2329"]
[BlackElo "2663"]
[TimeControl "180+1"]
[EndTime "9:08:23 PST"]
[Termination "Timerkhanov won by resignation"]

1. d4 {[%clk 0:02:46.8]} 1... d5 {[%clk 0:02:59.5]} 2. c4 {[%clk 0:02:46.9]}
2... dxc4 {[%clk 0:03:00.4]} 3. e3 {[%clk 0:02:47]} 3... Be6 {[%clk 0:03:00.7]}
4. Nd2 {[%clk 0:02:45.1]} 4... c5 {[%clk 0:02:58.7]} 5. Ngf3 {[%clk 0:02:43.3]}
5... Nc6 {[%clk 0:02:57.8]} 6. Nxc4 {[%clk 0:02:33.5]} 6... cxd4 {[%clk
0:02:56]} 7. exd4 {[%clk 0:02:32.9]} 7... Nf6 {[%clk 0:02:55.3]} 8. Be3 {[%clk
0:02:28.6]} 8... Bd5 {[%clk 0:02:54.9]} 9. Be2 {[%clk 0:02:27.8]} 9... e6 {[%clk
0:02:53.9]} 10. O-O {[%clk 0:02:26.9]} 10... Be7 {[%clk 0:02:54.3]} 11. Nce5
{[%clk 0:02:23.2]} 11... O-O {[%clk 0:02:53.4]} 12. a3 {[%clk 0:02:18.7]} 12...
Rc8 {[%clk 0:02:52.8]} 13. b4 {[%clk 0:02:18.1]} 13... a6 {[%clk 0:02:51.9]} 14.
Rc1 {[%clk 0:02:16.9]} 14... Ne4 {[%clk 0:02:49.5]} 15. Nxc6 {[%clk 0:02:10.4]}
15... Bxc6 {[%clk 0:02:49.6]} 16. Ne5 {[%clk 0:02:08.9]} 16... Bd5 {[%clk
0:02:47.7]} 17. Qd3 {[%clk 0:01:47.8]} 17... Bd6 {[%clk 0:02:30.4]} 18. Rxc8
{[%clk 0:01:31.6]} 18... Qxc8 {[%clk 0:02:31.3]} 19. Rc1 {[%clk 0:01:32.1]}
19... Qd8 {[%clk 0:02:26.9]} 20. Bf3 {[%clk 0:01:28.2]} 20... Nf6 {[%clk
0:02:26.4]} 21. Bxd5 {[%clk 0:01:23.1]} 21... Nxd5 {[%clk 0:02:24.8]} 22. Nc4
{[%clk 0:01:23.8]} 22... Bc7 {[%clk 0:02:18.8]} 23. Qe4 {[%clk 0:01:21.7]} 23...
Qe7 {[%clk 0:02:11.1]} 24. Bd2 {[%clk 0:01:15.6]} 24... Rd8 {[%clk 0:02:07.5]}
25. Ne5 {[%clk 0:01:13.2]} 25... h6 {[%clk 0:02:04]} 26. h3 {[%clk 0:01:04.3]}
26... Bb6 {[%clk 0:02:01.8]} 27. Nc4 {[%clk 0:01:02.2]} 27... Nf6 {[%clk
0:01:57.5]} 28. Qe2 {[%clk 0:00:54.2]} 28... Bxd4 {[%clk 0:01:57.4]} 29. Bf4
{[%clk 0:00:47.3]} 29... Nd5 {[%clk 0:01:53.1]} 30. Bg3 {[%clk 0:00:45.3]} 30...
Ba7 {[%clk 0:01:44.6]} 31. Na5 {[%clk 0:00:41.8]} 31... Qg5 {[%clk 0:01:43.7]}
32. Rc5 {[%clk 0:00:14.9]} 32... b6 {[%clk 0:01:11.7]} 33. Qxa6 {[%clk
0:00:12.7]} 33... bxc5 {[%clk 0:01:11.2]} 34. Qb7 {[%clk 0:00:13.1]} 34... Bb6
{[%clk 0:01:01.8]} 35. Nc6 {[%clk 0:00:12.5]} 35... Rf8 {[%clk 0:00:57.1]} 36.
Bd6 {[%clk 0:00:11.5]} 36... cxb4 {[%clk 0:00:45.9]} 37. Bxf8 {[%clk 0:00:10.3]}
37... Qc1+ {[%clk 0:00:46.4]} 38. Kh2 {[%clk 0:00:10]} 38... Bxf2 {[%clk
0:00:46.6]} 39. h4 {[%clk 0:00:05.5]} 39... Qf4+ {[%clk 0:00:42.7]} 0-1

[Event "Early-Titled-Tuesday-Blitz-January-30-2024"]
[Site "Chess.com"]
[Date "2024.01.30"]
[Round "6"]
[White "VladimirKramnik"]
[Black "mac0504"]
[Result "1-0"]
[WhiteElo "2938"]
[BlackElo "2741"]
[TimeControl "180+1"]
[EndTime "9:08:24 PST"]
[Termination "VladimirKramnik won by resignation"]

1. e4 {[%clk 0:03:00.9]} 1... c5 {[%clk 0:02:55.9]} 2. Nf3 {[%clk 0:03:00.6]}
2... e6 {[%clk 0:02:56.2]} 3. b3 {[%clk 0:02:59.6]} 3... Nc6 {[%clk 0:02:52.3]}
4. Bb2 {[%clk 0:02:59.1]} 4... a6 {[%clk 0:02:52.7]} 5. c4 {[%clk 0:02:57.1]}
5... Nf6 {[%clk 0:02:52.3]} 6. Nc3 {[%clk 0:02:56.2]} 6... e5 {[%clk 0:02:40.7]}
7. g3 {[%clk 0:02:52.6]} 7... g6 {[%clk 0:02:33.6]} 8. Bg2 {[%clk 0:02:53]} 8...
Bg7 {[%clk 0:02:34.2]} 9. O-O {[%clk 0:02:52.7]} 9... O-O {[%clk 0:02:34.6]} 10.
d3 {[%clk 0:02:52.9]} 10... d6 {[%clk 0:02:34.9]} 11. Ne1 {[%clk 0:02:47.4]}
11... Nd4 {[%clk 0:02:33.7]} 12. Nc2 {[%clk 0:02:43.7]} 12... Rb8 {[%clk
0:02:25.3]} 13. Ne3 {[%clk 0:02:35.4]} 13... b5 {[%clk 0:02:23.1]} 14. f4 {[%clk
0:02:28.2]} 14... bxc4 {[%clk 0:02:13.7]} 15. dxc4 {[%clk 0:02:26.4]} 15... exf4
{[%clk 0:02:10.3]} 16. gxf4 {[%clk 0:02:26.3]} 16... Re8 {[%clk 0:02:10.5]} 17.
Qd3 {[%clk 0:02:19.1]} 17... Bb7 {[%clk 0:01:52.1]} 18. Rae1 {[%clk 0:02:18.7]}
18... Nh5 {[%clk 0:01:42.5]} 19. Ncd5 {[%clk 0:01:59.3]} 19... Bxd5 {[%clk
0:01:42.4]} 20. Nxd5 {[%clk 0:01:58.3]} 20... Qh4 {[%clk 0:01:29.2]} 21. Bc3
{[%clk 0:01:55.8]} 21... f5 {[%clk 0:01:21.7]} 22. Bd2 {[%clk 0:01:29.2]} 22...
fxe4 {[%clk 0:01:14.9]} 23. Bxe4 {[%clk 0:01:29.3]} 23... Rf8 {[%clk 0:01:01.3]}
24. Kh1 {[%clk 0:01:16.8]} 24... Kh8 {[%clk 0:01:01.2]} 25. Rg1 {[%clk 0:00:59]}
25... Rbe8 {[%clk 0:00:55.8]} 26. Ref1 {[%clk 0:00:55.5]} 26... Nf6 {[%clk
0:00:41.8]} 27. Be1 {[%clk 0:00:50.2]} 27... Qh6 {[%clk 0:00:34.1]} 28. Nxf6
{[%clk 0:00:50]} 28... Bxf6 {[%clk 0:00:34.1]} 29. Bg3 {[%clk 0:00:46]} 29...
Re7 {[%clk 0:00:31.6]} 30. f5 {[%clk 0:00:43.4]} 30... gxf5 {[%clk 0:00:08.8]}
31. Bxf5 {[%clk 0:00:42.2]} 31... Be5 {[%clk 0:00:05.6]} 32. Bg4 {[%clk
0:00:32.8]} 32... Rxf1 {[%clk 0:00:03]} 33. Bxe5+ {[%clk 0:00:28.3]} 33... Rxe5
{[%clk 0:00:03.8]} 34. Qxf1 {[%clk 0:00:28.5]} 34... Qg7 {[%clk 0:00:02.3]} 35.
Be6 {[%clk 0:00:23.1]} 35... Rg5 {[%clk 0:00:02.2]} 36. Rxg5 {[%clk 0:00:22.1]}
1-0

[Event "Early-Titled-Tuesday-Blitz-January-30-2024"]
[Site "Chess.com"]
[Date "2024.01.30"]
[Round "6"]
[White "tusplingher"]
[Black "LuisFSiles"]
[Result "1-0"]
[WhiteElo "2471"]
[BlackElo "2240"]
[TimeControl "180+1"]
[EndTime "9:08:24 PST"]
[Termination "tusplingher won by resignation"]

1. e4 {[%clk 0:03:00.9]} 1... c5 {[%clk 0:02:58.7]} 2. Nf3 {[%clk 0:03:00.8]}
2... Nc6 {[%clk 0:02:58.4]} 3. Bb5 {[%clk 0:02:59.5]} 3... g6 {[%clk 0:02:58.1]}
4. Bxc6 {[%clk 0:02:59.7]} 4... dxc6 {[%clk 0:02:59]} 5. d3 {[%clk 0:02:57.9]}
5... Bg7 {[%clk 0:02:59]} 6. h3 {[%clk 0:02:56.8]} 6... Nf6 {[%clk 0:02:57.9]}
7. O-O {[%clk 0:02:54.7]} 7... Nd7 {[%clk 0:02:51.3]} 8. Nc3 {[%clk 0:02:50.5]}
8... e5 {[%clk 0:02:50.7]} 9. Be3 {[%clk 0:02:48.7]} 9... b6 {[%clk 0:02:39.1]}
10. a3 {[%clk 0:02:45.8]} 10... a5 {[%clk 0:02:35.9]} 11. Nd2 {[%clk 0:02:40.8]}
11... Nf8 {[%clk 0:02:31.4]} 12. Rb1 {[%clk 0:02:15.6]} 12... Ne6 {[%clk
0:02:28.7]} 13. b4 {[%clk 0:02:13.8]} 13... axb4 {[%clk 0:02:18.1]} 14. axb4
{[%clk 0:02:12.8]} 14... cxb4 {[%clk 0:02:18.3]} 15. Rxb4 {[%clk 0:02:11.2]}
15... b5 {[%clk 0:02:12.1]} 16. Rb1 {[%clk 0:02:01.8]} 16... O-O {[%clk
0:02:11.1]} 17. Nb3 {[%clk 0:02:00.9]} 17... f5 {[%clk 0:01:51.9]} 18. f3 {[%clk
0:01:43.1]} 18... Bf6 {[%clk 0:01:41.8]} 19. Ra1 {[%clk 0:01:27.1]} 19... Rxa1
{[%clk 0:01:37.6]} 20. Qxa1 {[%clk 0:01:27.7]} 20... Nd4 {[%clk 0:01:29.9]} 21.
Bxd4 {[%clk 0:01:20.3]} 21... exd4 {[%clk 0:01:28.9]} 22. Ne2 {[%clk 0:01:21.1]}
22... Qd7 {[%clk 0:00:45.8]} 23. Qa5 {[%clk 0:00:57.9]} 23... Bg5 {[%clk
0:00:34.2]} 24. Ra1 {[%clk 0:00:55.1]} 24... Be3+ {[%clk 0:00:34]} 25. Kh1
{[%clk 0:00:53.3]} 25... fxe4 {[%clk 0:00:34.4]} 26. Nc5 {[%clk 0:00:48.4]}
26... Qd5 {[%clk 0:00:18.1]} 27. Nxe4 {[%clk 0:00:45.8]} 27... Qh5 {[%clk
0:00:16.7]} 28. N2g3 {[%clk 0:00:21.9]} 28... Qh4 {[%clk 0:00:16.3]} 29. Kh2
{[%clk 0:00:20.2]} 29... Rxf3 {[%clk 0:00:14.3]} 30. Qc7 {[%clk 0:00:18.2]}
30... Rf8 {[%clk 0:00:11.6]} 31. Ra8 {[%clk 0:00:13.4]} 31... Qh6 {[%clk
0:00:07.8]} 32. Rxc8 {[%clk 0:00:11.6]} 1-0

[Event "Early-Titled-Tuesday-Blitz-January-30-2024"]
[Site "Chess.com"]
[Date "2024.01.30"]
[Round "6"]
[White "adotand"]
[Black "VincentKeymer"]
[Result "0-1"]
[WhiteElo "2836"]
[BlackElo "3065"]
[TimeControl "180+1"]
[EndTime "9:08:31 PST"]
[Termination "VincentKeymer won by resignation"]

1. Nf3 {[%clk 0:03:00.9]} 1... d5 {[%clk 0:02:58.6]} 2. e3 {[%clk 0:03:01.3]}
2... Nf6 {[%clk 0:02:55.2]} 3. b3 {[%clk 0:03:01.6]} 3... Bg4 {[%clk 0:02:54.3]}
4. Bb2 {[%clk 0:03:00]} 4... e6 {[%clk 0:02:53.9]} 5. Be2 {[%clk 0:03:00.5]}
5... Nbd7 {[%clk 0:02:49.6]} 6. h3 {[%clk 0:02:58.8]} 6... Bh5 {[%clk
0:02:49.7]} 7. d4 {[%clk 0:02:58.9]} 7... a5 {[%clk 0:02:45.9]} 8. a3 {[%clk
0:02:58.6]} 8... Bd6 {[%clk 0:02:43.6]} 9. Nbd2 {[%clk 0:02:58.7]} 9... O-O
{[%clk 0:02:43.4]} 10. O-O {[%clk 0:02:58.3]} 10... Qe7 {[%clk 0:02:42.2]} 11.
c4 {[%clk 0:02:58.3]} 11... c6 {[%clk 0:02:41.9]} 12. Nh4 {[%clk 0:02:55.2]}
12... Bxe2 {[%clk 0:02:39.5]} 13. Qxe2 {[%clk 0:02:56.1]} 13... Ne4 {[%clk
0:02:39.5]} 14. Nhf3 {[%clk 0:02:53.1]} 14... f5 {[%clk 0:02:39.1]} 15. c5
{[%clk 0:02:41]} 15... Bc7 {[%clk 0:02:37.2]} 16. b4 {[%clk 0:02:41.6]} 16... e5
{[%clk 0:02:25.6]} 17. Nb3 {[%clk 0:02:21.7]} 17... a4 {[%clk 0:02:17.3]} 18.
Nc1 {[%clk 0:02:20.5]} 18... f4 {[%clk 0:02:05.8]} 19. Nd3 {[%clk 0:02:15.3]}
19... fxe3 {[%clk 0:02:02.7]} 20. Qxe3 {[%clk 0:02:14.2]} 20... exd4 {[%clk
0:02:02.2]} 21. Nxd4 {[%clk 0:02:14]} 21... Rae8 {[%clk 0:02:00.6]} 22. Rae1
{[%clk 0:02:05.2]} 22... Qh4 {[%clk 0:01:45.9]} 23. Nf3 {[%clk 0:01:42.9]} 23...
Qh5 {[%clk 0:01:35.6]} 24. Qd4 {[%clk 0:01:43.2]} 24... Qg6 {[%clk 0:01:25.6]}
25. Nh4 {[%clk 0:01:37.1]} 25... Qh6 {[%clk 0:01:22.6]} 26. b5 {[%clk
0:01:01.7]} 26... Ne5 {[%clk 0:01:11]} 27. g3 {[%clk 0:00:45.4]} 27... Nxd3
{[%clk 0:00:19.7]} 28. Qxd3 {[%clk 0:00:45.6]} 28... Nxc5 {[%clk 0:00:20.3]} 29.
Qc2 {[%clk 0:00:44.2]} 29... Ne4 {[%clk 0:00:19.3]} 30. bxc6 {[%clk 0:00:44.7]}
30... bxc6 {[%clk 0:00:19.4]} 31. Qxa4 {[%clk 0:00:45]} 31... Bb6 {[%clk
0:00:15.9]} 32. Bd4 {[%clk 0:00:43.9]} 32... Bxd4 {[%clk 0:00:13.4]} 33. Qxd4
{[%clk 0:00:44.8]} 33... g5 {[%clk 0:00:11.1]} 34. Ng2 {[%clk 0:00:41.2]} 34...
Qxh3 {[%clk 0:00:11.2]} 35. Rc1 {[%clk 0:00:34.1]} 35... Re6 {[%clk 0:00:10.3]}
36. g4 {[%clk 0:00:17.8]} 36... Rh6 {[%clk 0:00:09.4]} 0-1